[Event "Titled Tuesday Blitz August 08 Late 2023"]
[White "Czerw, Dawid"]
[Black "Kostiukov, Alexandr"]
[WhiteFideId "1145746"]
[BlackFideId "14108100"]
[WhiteElo "2527"]
[BlackElo "2363"]
[Result "1/2-1/2"]
[Round "6"]
[TimeControl "180+1"]
[Date "2023.08.08"]
[WhiteClock "0:00:11"]
[BlackClock "0:00:14"]
[Board "106"]

1. e4 {[%clk 0:02:59]}  c5 {[%clk 0:02:59]} 2. Nf3 {[%clk 0:02:57]}  g6 {[%clk 0:03:00]} 3. d4 {[%clk 0:02:56]}  cxd4 {[%clk 0:03:01]} 4. Qxd4 {[%clk 0:02:57]}  Nf6 {[%clk 0:03:01]} 5. Nc3 {[%clk 0:02:57]}  Nc6 {[%clk 0:02:58]} 6. Qa4 {[%clk 0:02:57]}  d6 {[%clk 0:02:55]} 7. e5 {[%clk 0:02:58]}  dxe5 {[%clk 0:02:54]} 8. Nxe5 {[%clk 0:02:58]}  Bg7 {[%clk 0:02:52]} 9. Bb5 {[%clk 0:02:56]}  O-O {[%clk 0:02:48]} 10. Bxc6 {[%clk 0:02:56]}  bxc6 {[%clk 0:02:44]} 11. O-O {[%clk 0:02:56]}  Qc7 {[%clk 0:02:30]} 12. Re1 {[%clk 0:02:41]}  Nd5 {[%clk 0:02:22]} 13. Nxd5 {[%clk 0:02:20]}  cxd5 {[%clk 0:02:22]} 14. Bf4 {[%clk 0:02:16]}  Qb6 {[%clk 0:02:11]} 15. Qb3 {[%clk 0:02:02]}  e6 {[%clk 0:01:54]} 16. c3 {[%clk 0:01:53]}  Re8 {[%clk 0:01:05]} 17. Rad1 {[%clk 0:01:39]}  Ba6 {[%clk 0:00:52]} 18. Qxb6 {[%clk 0:01:31]}  axb6 {[%clk 0:00:52]} 19. Nd7 {[%clk 0:01:30]}  Bb5 {[%clk 0:00:42]} 20. Nxb6 {[%clk 0:01:26]}  Rxa2 {[%clk 0:00:42]} 21. Rd2 {[%clk 0:01:14]}  Bc6 {[%clk 0:00:16]} 22. c4 {[%clk 0:00:57]}  Rxb2 {[%clk 0:00:10]} 23. Rxb2 {[%clk 0:00:54]}  Bxb2 {[%clk 0:00:11]} 24. cxd5 {[%clk 0:00:54]}  Bb5 {[%clk 0:00:05]} 25. dxe6 {[%clk 0:00:47]}  Rxe6 {[%clk 0:00:04]} 26. Rxe6 {[%clk 0:00:39]}  fxe6 {[%clk 0:00:05]} 27. Nc8 {[%clk 0:00:34]}  Bc4 {[%clk 0:00:03]} 28. Nd6 {[%clk 0:00:34]}  Bd5 {[%clk 0:00:03]} 29. Be3 {[%clk 0:00:30]}  Kg7 {[%clk 0:00:03]} 30. f3 {[%clk 0:00:29]}  Kf6 {[%clk 0:00:02]} 31. Kf2 {[%clk 0:00:29]}  h5 {[%clk 0:00:03]} 32. h4 {[%clk 0:00:29]}  Ke5 {[%clk 0:00:02]} 33. Nf7+ {[%clk 0:00:27]}  Kf6 {[%clk 0:00:02]} 34. Ng5 {[%clk 0:00:27]}  Bc3 {[%clk 0:00:02]} 35. Nh3 {[%clk 0:00:26]}  Bb2 {[%clk 0:00:02]} 36. Ng1 {[%clk 0:00:25]}  Ba1 {[%clk 0:00:02]} 37. Ne2 {[%clk 0:00:26]}  Ke5 {[%clk 0:00:02]} 38. Bf4+ {[%clk 0:00:22]}  Kf6 {[%clk 0:00:03]} 39. Bg5+ {[%clk 0:00:22]}  Kf7 {[%clk 0:00:02]} 40. g4 {[%clk 0:00:22]}  hxg4 {[%clk 0:00:01]} 41. fxg4 {[%clk 0:00:23]}  Bc4 {[%clk 0:00:02]} 42. Ng3 {[%clk 0:00:20]}  Bd4+ {[%clk 0:00:01]} 43. Kf3 {[%clk 0:00:19]}  Bd5+ {[%clk 0:00:02]} 44. Ke2 {[%clk 0:00:19]}  Be5 {[%clk 0:00:02]} 45. Nf1 {[%clk 0:00:17]}  Bc4+ {[%clk 0:00:03]} 46. Kf2 {[%clk 0:00:16]}  Bd4+ {[%clk 0:00:03]} 47. Be3 {[%clk 0:00:12]}  Bf6 {[%clk 0:00:03]} 48. g5 {[%clk 0:00:10]}  Be5 {[%clk 0:00:03]} 49. Nd2 {[%clk 0:00:11]}  Bd3 {[%clk 0:00:02]} 50. Nf3 {[%clk 0:00:11]}  Bg7 {[%clk 0:00:02]} 51. Bd4 {[%clk 0:00:10]}  Bf5 {[%clk 0:00:02]} 52. Bxg7 {[%clk 0:00:10]}  Kxg7 {[%clk 0:00:03]} 53. Ke3 {[%clk 0:00:10]}  Kf7 {[%clk 0:00:03]} 54. Kd4 {[%clk 0:00:10]}  Ke7 {[%clk 0:00:03]} 55. Ke5 {[%clk 0:00:10]}  Kd7 {[%clk 0:00:04]} 56. Nd4 {[%clk 0:00:10]}  Ke7 {[%clk 0:00:03]} 57. Nb3 {[%clk 0:00:07]}  Kd7 {[%clk 0:00:02]} 58. Nc5+ {[%clk 0:00:07]}  Ke7 {[%clk 0:00:03]} 59. Nb3 {[%clk 0:00:02]}  Bh3 {[%clk 0:00:03]} 60. Na5 {[%clk 0:00:03]}  Bf5 {[%clk 0:00:04]} 61. Nc4 {[%clk 0:00:03]}  Bh3 {[%clk 0:00:04]} 62. Nd6 {[%clk 0:00:04]}  Bf5 {[%clk 0:00:03]} 63. Nb5 {[%clk 0:00:04]}  Bh3 {[%clk 0:00:04]} 64. Na7 {[%clk 0:00:04]}  Bf5 {[%clk 0:00:04]} 65. Nc6+ {[%clk 0:00:04]}  Kf7 {[%clk 0:00:04]} 66. Nd4 {[%clk 0:00:05]}  Bh3 {[%clk 0:00:03]} 67. Kf4 {[%clk 0:00:05]}  Bf5 {[%clk 0:00:02]} 68. Nf3 {[%clk 0:00:05]}  Ke7 {[%clk 0:00:02]} 69. Ne5 {[%clk 0:00:06]}  Kd6 {[%clk 0:00:02]} 70. Nf7+ {[%clk 0:00:05]}  Ke7 {[%clk 0:00:02]} 71. Nh6 {[%clk 0:00:06]}  Kf8 {[%clk 0:00:02]} 72. Nxf5 {[%clk 0:00:06]}  exf5 {[%clk 0:00:02]} 73. h5 {[%clk 0:00:05]}  Kg7 {[%clk 0:00:02]} 74. h6+ {[%clk 0:00:05]}  Kh7 {[%clk 0:00:02]} 75. Ke5 {[%clk 0:00:04]}  Kg8 {[%clk 0:00:02]} 76. Kd5 {[%clk 0:00:05]}  Kh7 {[%clk 0:00:02]} 77. Kd4 {[%clk 0:00:03]}  Kh8 {[%clk 0:00:02]} 78. Ke5 {[%clk 0:00:04]}  Kh7 {[%clk 0:00:03]} 79. Kf4 {[%clk 0:00:04]}  Kg8 {[%clk 0:00:04]} 80. Kf3 {[%clk 0:00:04]}  Kh7 {[%clk 0:00:05]} 81. Ke3 {[%clk 0:00:04]}  Kh8 {[%clk 0:00:06]} 82. Kd3 {[%clk 0:00:05]}  Kh7 {[%clk 0:00:07]} 83. Kc3 {[%clk 0:00:05]}  Kh8 {[%clk 0:00:08]} 84. Kd4 {[%clk 0:00:05]}  Kh7 {[%clk 0:00:08]} 85. Ke5 {[%clk 0:00:05]}  Kh8 {[%clk 0:00:09]} 86. Kf4 {[%clk 0:00:05]}  Kh7 {[%clk 0:00:10]} 87. Kf3 {[%clk 0:00:05]}  Kh8 {[%clk 0:00:11]} 88. Kg3 {[%clk 0:00:06]}  Kh7 {[%clk 0:00:11]} 89. Kh4 {[%clk 0:00:06]}  Kh8 {[%clk 0:00:11]} 90. Kh3 {[%clk 0:00:07]}  Kh7 {[%clk 0:00:12]} 91. Kh2 {[%clk 0:00:08]}  Kh8 {[%clk 0:00:12]} 92. Kg2 {[%clk 0:00:09]}  Kh7 {[%clk 0:00:13]} 93. Kf3 {[%clk 0:00:10]}  Kh8 {[%clk 0:00:13]} 94. Kf4 {[%clk 0:00:11]}  Kh7 {[%clk 0:00:14]} 1/2-1/2


[Site "https://www.chess.com"]

[Event "Titled Tuesday Blitz August 08 Late 2023"]
[White "Hoffmann, Asa"]
[Black "Bettalli, Francesco"]
[WhiteFideId "2001470"]
[BlackFideId "2816453"]
[WhiteElo "2358"]
[BlackElo "2520"]
[Result "0-1"]
[Round "6"]
[TimeControl "180+1"]
[Date "2023.08.08"]
[WhiteClock "0:00:16"]
[BlackClock "0:00:09"]
[Board "107"]

1. d4 {[%clk 0:02:58]}  Nf6 {[%clk 0:02:52]} 2. Bg5 {[%clk 0:02:57]}  Ne4 {[%clk 0:02:50]} 3. Bf4 {[%clk 0:02:55]}  d5 {[%clk 0:02:50]} 4. f3 {[%clk 0:02:55]}  Nf6 {[%clk 0:02:48]} 5. e4 {[%clk 0:02:54]}  dxe4 {[%clk 0:02:47]} 6. Nc3 {[%clk 0:02:54]}  c5 {[%clk 0:02:47]} 7. dxc5 {[%clk 0:02:52]}  Qa5 {[%clk 0:02:44]} 8. Qd2 {[%clk 0:02:50]}  Qxc5 {[%clk 0:02:41]} 9. fxe4 {[%clk 0:02:48]}  e5 {[%clk 0:02:31]} 10. Be3 {[%clk 0:02:47]}  Qa5 {[%clk 0:02:28]} 11. Nf3 {[%clk 0:02:39]}  Bb4 {[%clk 0:02:26]} 12. Bd3 {[%clk 0:02:33]}  O-O {[%clk 0:02:22]} 13. O-O {[%clk 0:02:32]}  Nc6 {[%clk 0:02:20]} 14. h3 {[%clk 0:02:24]}  Rd8 {[%clk 0:02:09]} 15. a3 {[%clk 0:02:20]}  Bxc3 {[%clk 0:02:06]} 16. Qxc3 {[%clk 0:02:20]}  Qxc3 {[%clk 0:02:06]} 17. bxc3 {[%clk 0:02:20]}  h6 {[%clk 0:02:07]} 18. Rab1 {[%clk 0:02:14]}  b6 {[%clk 0:02:03]} 19. Bb5 {[%clk 0:02:06]}  Bb7 {[%clk 0:02:03]} 20. Nd2 {[%clk 0:01:56]}  Na5 {[%clk 0:01:59]} 21. Bd3 {[%clk 0:01:54]}  Rac8 {[%clk 0:01:58]} 22. c4 {[%clk 0:01:47]}  Ba6 {[%clk 0:01:55]} 23. Bxh6 {[%clk 0:01:43]}  Nxc4 {[%clk 0:01:31]} 24. Nxc4 {[%clk 0:01:39]}  Bxc4 {[%clk 0:01:30]} 25. Bg5 {[%clk 0:01:27]}  Bxd3 {[%clk 0:01:25]} 26. cxd3 {[%clk 0:01:27]}  Rc6 {[%clk 0:01:21]} 27. Rb3 {[%clk 0:01:22]}  Rd4 {[%clk 0:01:18]} 28. Bxf6 {[%clk 0:01:22]}  gxf6 {[%clk 0:01:19]} 29. Rf3 {[%clk 0:01:19]}  Kf8 {[%clk 0:01:12]} 30. Kf2 {[%clk 0:01:18]}  Ke7 {[%clk 0:01:12]} 31. Ke3 {[%clk 0:01:18]}  Rc2 {[%clk 0:01:12]} 32. Rf2 {[%clk 0:01:17]}  Rc1 {[%clk 0:01:10]} 33. Ke2 {[%clk 0:01:08]}  Ke6 {[%clk 0:01:05]} 34. Rf1 {[%clk 0:01:07]}  Rc2+ {[%clk 0:01:03]} 35. Kf3 {[%clk 0:01:06]}  Rd2 {[%clk 0:01:03]} 36. h4 {[%clk 0:01:00]}  R2xd3+ {[%clk 0:00:55]} 37. Rxd3 {[%clk 0:01:00]}  Rxd3+ {[%clk 0:00:56]} 38. Kg4 {[%clk 0:01:00]}  Re3 {[%clk 0:00:56]} 39. h5 {[%clk 0:00:55]}  Rxe4+ {[%clk 0:00:56]} 40. Kg3 {[%clk 0:00:55]}  Re3+ {[%clk 0:00:54]} 41. Kg4 {[%clk 0:00:55]}  f5+ {[%clk 0:00:44]} 42. Kh4 {[%clk 0:00:50]}  Re4+ {[%clk 0:00:40]} 43. Kh3 {[%clk 0:00:48]}  Kf6 {[%clk 0:00:34]} 44. h6 {[%clk 0:00:43]}  f4 {[%clk 0:00:31]} 45. Rc1 {[%clk 0:00:41]}  Kg6 {[%clk 0:00:24]} 46. Rc6+ {[%clk 0:00:40]}  f6 {[%clk 0:00:25]} 47. Kg4 {[%clk 0:00:39]}  Re3 {[%clk 0:00:24]} 48. h7 {[%clk 0:00:38]}  Rg3+ {[%clk 0:00:18]} 49. Kh4 {[%clk 0:00:37]}  Rxg2 {[%clk 0:00:12]} 50. Rxf6+ {[%clk 0:00:35]}  Kxh7 {[%clk 0:00:10]} 51. Rf5 {[%clk 0:00:33]}  Re2 {[%clk 0:00:09]} 52. Kg5 {[%clk 0:00:32]}  Kg7 {[%clk 0:00:09]} 53. Kg4 {[%clk 0:00:29]}  Re3 {[%clk 0:00:10]} 54. Rh5 {[%clk 0:00:27]}  Kf6 {[%clk 0:00:08]} 55. Rh6+ {[%clk 0:00:27]}  Ke7 {[%clk 0:00:09]} 56. Rh7+ {[%clk 0:00:27]}  Ke6 {[%clk 0:00:09]} 57. Rh6+ {[%clk 0:00:27]}  Kd5 {[%clk 0:00:09]} 58. Rh5 {[%clk 0:00:26]}  Rg3+ {[%clk 0:00:09]} 59. Kh4 {[%clk 0:00:26]}  Rg8 {[%clk 0:00:10]} 60. Rh7 {[%clk 0:00:25]}  f3 {[%clk 0:00:09]} 61. Rf7 {[%clk 0:00:24]}  Ke4 {[%clk 0:00:09]} 62. Kh3 {[%clk 0:00:22]}  Ke3 {[%clk 0:00:10]} 63. Rf5 {[%clk 0:00:22]}  e4 {[%clk 0:00:07]} 64. a4 {[%clk 0:00:22]}  f2 {[%clk 0:00:08]} 65. a5 {[%clk 0:00:21]}  Ke2 {[%clk 0:00:08]} 66. axb6 {[%clk 0:00:21]}  axb6 {[%clk 0:00:09]} 67. Rf4 {[%clk 0:00:16]}  e3 {[%clk 0:00:09]} 0-1


[Site "https://www.chess.com"]

[Event "Titled Tuesday Blitz August 08 Late 2023"]
[White "ciroreva-CB"]
[Black "Bochnicka, Vladimir"]
[BlackFideId "14943450"]
[WhiteElo "2341"]
[BlackElo "2492"]
[Result "0-1"]
[Round "6"]
[TimeControl "180+1"]
[Date "2023.08.08"]
[WhiteClock "0:00:00"]
[BlackClock "0:00:31"]
[Board "110"]

1. e4 {[%clk 0:03:00]}  e5 {[%clk 0:02:59]} 2. Nf3 {[%clk 0:03:00]}  Nc6 {[%clk 0:02:58]} 3. Nc3 {[%clk 0:03:00]}  Nf6 {[%clk 0:02:57]} 4. h3 {[%clk 0:02:59]}  Bb4 {[%clk 0:02:56]} 5. Nd5 {[%clk 0:02:59]}  Bc5 {[%clk 0:02:50]} 6. d3 {[%clk 0:02:14]}  O-O {[%clk 0:02:47]} 7. Bg5 {[%clk 0:02:08]}  Be7 {[%clk 0:02:47]} 8. Nxe7+ {[%clk 0:02:04]}  Qxe7 {[%clk 0:02:48]} 9. Be2 {[%clk 0:01:59]}  h6 {[%clk 0:02:47]} 10. Bh4 {[%clk 0:01:49]}  d6 {[%clk 0:02:47]} 11. O-O {[%clk 0:01:48]}  Nd8 {[%clk 0:02:47]} 12. Qd2 {[%clk 0:01:43]}  Ne6 {[%clk 0:02:46]} 13. Rfe1 {[%clk 0:01:28]}  Nf4 {[%clk 0:02:46]} 14. Bf1 {[%clk 0:01:28]}  g5 {[%clk 0:02:46]} 15. Bg3 {[%clk 0:01:26]}  N6h5 {[%clk 0:02:44]} 16. d4 {[%clk 0:01:26]}  Qf6 {[%clk 0:02:36]} 17. dxe5 {[%clk 0:01:21]}  dxe5 {[%clk 0:02:30]} 18. Bh2 {[%clk 0:01:21]}  g4 {[%clk 0:02:17]} 19. hxg4 {[%clk 0:01:21]}  Bxg4 {[%clk 0:02:17]} 20. Qc3 {[%clk 0:01:22]}  Rfe8 {[%clk 0:02:10]} 21. Re3 {[%clk 0:01:04]}  Kh7 {[%clk 0:02:01]} 22. Bxf4 {[%clk 0:00:33]}  Nxf4 {[%clk 0:01:59]} 23. g3 {[%clk 0:00:33]}  Ng6 {[%clk 0:01:53]} 24. Bg2 {[%clk 0:00:31]}  c6 {[%clk 0:01:52]} 25. Rd1 {[%clk 0:00:28]}  Rad8 {[%clk 0:01:45]} 26. Red3 {[%clk 0:00:28]}  Rxd3 {[%clk 0:01:41]} 27. Rxd3 {[%clk 0:00:23]}  Rg8 {[%clk 0:01:32]} 28. Qb4 {[%clk 0:00:20]}  Bxf3 {[%clk 0:01:07]} 29. Rxf3 {[%clk 0:00:21]}  Qe7 {[%clk 0:00:50]} 30. Qxe7 {[%clk 0:00:20]}  Nxe7 {[%clk 0:00:50]} 31. Rxf7+ {[%clk 0:00:21]}  Rg7 {[%clk 0:00:51]} 32. Rxg7+ {[%clk 0:00:22]}  Kxg7 {[%clk 0:00:52]} 33. Kf1 {[%clk 0:00:20]}  Kf6 {[%clk 0:00:51]} 34. Ke2 {[%clk 0:00:19]}  Nc8 {[%clk 0:00:51]} 35. f4 {[%clk 0:00:18]}  Nd6 {[%clk 0:00:52]} 36. Kd3 {[%clk 0:00:17]}  b6 {[%clk 0:00:51]} 37. b4 {[%clk 0:00:15]}  c5 {[%clk 0:00:50]} 38. a3 {[%clk 0:00:11]}  Ke6 {[%clk 0:00:49]} 39. Bh3+ {[%clk 0:00:09]}  Kf6 {[%clk 0:00:49]} 40. bxc5 {[%clk 0:00:09]}  bxc5 {[%clk 0:00:49]} 41. c4 {[%clk 0:00:09]}  Nb7 {[%clk 0:00:45]} 42. Bg2 {[%clk 0:00:08]}  Na5 {[%clk 0:00:45]} 43. Kc3 {[%clk 0:00:08]}  Ke6 {[%clk 0:00:44]} 44. Bf1 {[%clk 0:00:04]}  Kf6 {[%clk 0:00:42]} 45. Bd3 {[%clk 0:00:04]}  Nc6 {[%clk 0:00:40]} 46. Kd2 {[%clk 0:00:04]}  Nd4 {[%clk 0:00:40]} 47. Ke3 {[%clk 0:00:04]}  a5 {[%clk 0:00:39]} 48. Kf2 {[%clk 0:00:03]}  Kg6 {[%clk 0:00:36]} 49. Kg2 {[%clk 0:00:03]}  Kh5 {[%clk 0:00:35]} 50. fxe5 {[%clk 0:00:01]}  Kg6 {[%clk 0:00:32]} 51. Kh3 {[%clk 0:00:02]}  Kf7 {[%clk 0:00:32]} 52. Kg4 {[%clk 0:00:03]}  Kg6 {[%clk 0:00:32]} 53. Kf4 {[%clk 0:00:02]}  Ne6+ {[%clk 0:00:32]} 54. Kg4 {[%clk 0:00:02]}  Nd4 {[%clk 0:00:33]} 55. e6 {[%clk 0:00:01]}  Nxe6 {[%clk 0:00:33]} 56. e5+ {[%clk 0:00:02]}  Kg7 {[%clk 0:00:32]} 57. Kh5 {[%clk 0:00:02]}  Nd4 {[%clk 0:00:31]} 58. g4 {[%clk 0:00:00]}  Nf3 {[%clk 0:00:31]} 0-1


[Site "https://www.chess.com"]

[Event "Titled Tuesday Blitz August 08 Late 2023"]
[White "Gaal, Zsoka"]
[Black "Fernandez Siles, Luis"]
[WhiteFideId "777765"]
[BlackFideId "2209420"]
[WhiteElo "2477"]
[BlackElo "2338"]
[Result "1-0"]
[Round "6"]
[TimeControl "180+1"]
[Date "2023.08.08"]
[WhiteClock "0:00:14"]
[BlackClock "0:00:00"]
[Board "112"]

1. Nf3 {[%clk 0:03:00]}  Nf6 {[%clk 0:02:58]} 2. g3 {[%clk 0:02:58]}  g6 {[%clk 0:02:58]} 3. b3 {[%clk 0:02:59]}  Bg7 {[%clk 0:02:57]} 4. Bb2 {[%clk 0:02:59]}  c5 {[%clk 0:02:57]} 5. Bg2 {[%clk 0:03:00]}  d5 {[%clk 0:02:56]} 6. O-O {[%clk 0:02:59]}  Nc6 {[%clk 0:02:55]} 7. c4 {[%clk 0:02:59]}  d4 {[%clk 0:02:54]} 8. e3 {[%clk 0:03:00]}  O-O {[%clk 0:02:28]} 9. exd4 {[%clk 0:02:58]}  cxd4 {[%clk 0:02:27]} 10. d3 {[%clk 0:02:57]}  e5 {[%clk 0:02:20]} 11. Re1 {[%clk 0:02:57]}  Re8 {[%clk 0:02:20]} 12. b4 {[%clk 0:02:57]}  Qc7 {[%clk 0:01:58]} 13. b5 {[%clk 0:02:40]}  Nb8 {[%clk 0:01:58]} 14. Nbd2 {[%clk 0:02:36]}  Nbd7 {[%clk 0:01:57]} 15. Nb3 {[%clk 0:02:36]}  Nc5 {[%clk 0:01:27]} 16. a4 {[%clk 0:02:33]}  Bf5 {[%clk 0:01:20]} 17. Nxc5 {[%clk 0:02:30]}  Qxc5 {[%clk 0:01:21]} 18. Ba3 {[%clk 0:02:30]}  Qc7 {[%clk 0:01:19]} 19. c5 {[%clk 0:02:30]}  Rad8 {[%clk 0:01:14]} 20. Rc1 {[%clk 0:02:30]}  Nd5 {[%clk 0:01:14]} 21. Nxd4 {[%clk 0:02:25]}  exd4 {[%clk 0:00:57]} 22. Rxe8+ {[%clk 0:02:25]}  Rxe8 {[%clk 0:00:57]} 23. Bxd5 {[%clk 0:02:24]}  Bh6 {[%clk 0:00:42]} 24. Rb1 {[%clk 0:02:15]}  Re5 {[%clk 0:00:35]} 25. Bg2 {[%clk 0:02:11]}  Bf8 {[%clk 0:00:30]} 26. b6 {[%clk 0:01:54]}  axb6 {[%clk 0:00:25]} 27. cxb6 {[%clk 0:01:55]}  Qd7 {[%clk 0:00:19]} 28. Bxf8 {[%clk 0:01:56]}  Kxf8 {[%clk 0:00:19]} 29. Rc1 {[%clk 0:01:48]}  Kg7 {[%clk 0:00:16]} 30. h4 {[%clk 0:01:36]}  Qe7 {[%clk 0:00:11]} 31. Rc7 {[%clk 0:01:25]}  Qb4 {[%clk 0:00:10]} 32. Qf3 {[%clk 0:01:17]}  Qxb6 {[%clk 0:00:10]} 33. Rxb7 {[%clk 0:01:03]}  Qf6 {[%clk 0:00:09]} 34. g4 {[%clk 0:00:50]}  Bc8 {[%clk 0:00:09]} 35. Qxf6+ {[%clk 0:00:50]}  Kxf6 {[%clk 0:00:10]} 36. Rb4 {[%clk 0:00:49]}  Bd7 {[%clk 0:00:07]} 37. Rxd4 {[%clk 0:00:45]}  Be8 {[%clk 0:00:07]} 38. Bf3 {[%clk 0:00:27]}  Ra5 {[%clk 0:00:06]} 39. Bd1 {[%clk 0:00:27]}  h5 {[%clk 0:00:06]} 40. g5+ {[%clk 0:00:27]}  Kg7 {[%clk 0:00:06]} 41. Kf1 {[%clk 0:00:25]}  f6 {[%clk 0:00:05]} 42. gxf6+ {[%clk 0:00:23]}  Kxf6 {[%clk 0:00:06]} 43. f4 {[%clk 0:00:21]}  Bd7 {[%clk 0:00:05]} 44. Bb3 {[%clk 0:00:19]}  Kf5 {[%clk 0:00:03]} 45. Rxd7 {[%clk 0:00:19]}  Kxf4 {[%clk 0:00:02]} 46. Kf2 {[%clk 0:00:16]}  Rf5 {[%clk 0:00:00]} 47. Rf7 {[%clk 0:00:14]} 1-0


[Site "https://www.chess.com"]

[Event "Titled Tuesday Blitz August 08 Late 2023"]
[White "Ljukin, Sergei"]
[Black "Gerbelli Neto, Eduardo"]
[WhiteFideId "14102200"]
[BlackFideId "2103281"]
[WhiteElo "2465"]
[BlackElo "2327"]
[Result "1-0"]
[Round "6"]
[TimeControl "180+1"]
[Date "2023.08.08"]
[WhiteClock "0:00:09"]
[BlackClock "0:00:29"]
[Board "114"]

1. e4 {[%clk 0:02:52]}  e5 {[%clk 0:02:59]} 2. Nf3 {[%clk 0:02:52]}  Nc6 {[%clk 0:03:00]} 3. Bb5 {[%clk 0:02:52]}  a6 {[%clk 0:03:00]} 4. Ba4 {[%clk 0:02:52]}  d6 {[%clk 0:03:01]} 5. c3 {[%clk 0:02:51]}  f5 {[%clk 0:03:01]} 6. exf5 {[%clk 0:02:47]}  Bxf5 {[%clk 0:03:01]} 7. O-O {[%clk 0:02:45]}  Bd3 {[%clk 0:03:02]} 8. Re1 {[%clk 0:02:44]}  Be7 {[%clk 0:02:59]} 9. Bc2 {[%clk 0:02:23]}  Bxc2 {[%clk 0:02:58]} 10. Qxc2 {[%clk 0:02:23]}  Nf6 {[%clk 0:02:59]} 11. d3 {[%clk 0:02:11]}  O-O {[%clk 0:02:58]} 12. Qb3+ {[%clk 0:02:10]}  Kh8 {[%clk 0:02:57]} 13. Qxb7 {[%clk 0:01:59]}  Qd7 {[%clk 0:02:55]} 14. Qb3 {[%clk 0:01:59]}  Qf5 {[%clk 0:02:43]} 15. Qc2 {[%clk 0:01:52]}  d5 {[%clk 0:02:37]} 16. Nbd2 {[%clk 0:01:45]}  Bd6 {[%clk 0:02:31]} 17. Qa4 {[%clk 0:01:10]}  Ne7 {[%clk 0:02:19]} 18. Nf1 {[%clk 0:01:08]}  Ng6 {[%clk 0:01:38]} 19. Ng3 {[%clk 0:01:02]}  Qe6 {[%clk 0:01:34]} 20. c4 {[%clk 0:00:49]}  h6 {[%clk 0:01:25]} 21. cxd5 {[%clk 0:00:32]}  Nxd5 {[%clk 0:01:26]} 22. Qc4 {[%clk 0:00:32]}  Ngf4 {[%clk 0:01:16]} 23. Bxf4 {[%clk 0:00:30]}  Rxf4 {[%clk 0:01:16]} 24. Re4 {[%clk 0:00:24]}  Raf8 {[%clk 0:01:12]} 25. Rae1 {[%clk 0:00:23]}  Rxf3 {[%clk 0:01:06]} 26. gxf3 {[%clk 0:00:22]}  Rxf3 {[%clk 0:00:58]} 27. d4 {[%clk 0:00:16]}  Nf4 {[%clk 0:00:37]} 28. Qxe6 {[%clk 0:00:15]}  Nxe6 {[%clk 0:00:38]} 29. dxe5 {[%clk 0:00:14]}  Bc5 {[%clk 0:00:39]} 30. R4e2 {[%clk 0:00:12]}  Nf4 {[%clk 0:00:38]} 31. Rc2 {[%clk 0:00:11]}  Bxf2+ {[%clk 0:00:35]} 32. Rxf2 {[%clk 0:00:10]}  Nh3+ {[%clk 0:00:36]} 33. Kg2 {[%clk 0:00:10]}  Rxf2+ {[%clk 0:00:36]} 34. Kxh3 {[%clk 0:00:10]}  Rxb2 {[%clk 0:00:37]} 35. e6 {[%clk 0:00:10]}  Rb8 {[%clk 0:00:34]} 36. Nf5 {[%clk 0:00:07]}  Re8 {[%clk 0:00:35]} 37. Nd4 {[%clk 0:00:06]}  Kg8 {[%clk 0:00:35]} 38. Rc1 {[%clk 0:00:06]}  Re7 {[%clk 0:00:33]} 39. Rc6 {[%clk 0:00:07]}  a5 {[%clk 0:00:33]} 40. Ra6 {[%clk 0:00:07]}  g5 {[%clk 0:00:34]} 41. Rxa5 {[%clk 0:00:07]}  Kg7 {[%clk 0:00:35]} 42. Rc5 {[%clk 0:00:08]}  Kf6 {[%clk 0:00:36]} 43. a4 {[%clk 0:00:07]}  h5 {[%clk 0:00:34]} 44. Rf5+ {[%clk 0:00:07]}  Kg6 {[%clk 0:00:33]} 45. a5 {[%clk 0:00:08]}  Rxe6 {[%clk 0:00:29]} 46. Nxe6 {[%clk 0:00:08]}  Kxf5 {[%clk 0:00:30]} 47. a6 {[%clk 0:00:08]}  Kxe6 {[%clk 0:00:30]} 48. a7 {[%clk 0:00:09]}  Kf5 {[%clk 0:00:31]} 49. a8=Q {[%clk 0:00:09]}  g4+ {[%clk 0:00:29]} 50. Kh4 {[%clk 0:00:09]} 1-0


[Site "https://www.chess.com"]

[Event "Titled Tuesday Blitz August 08 Late 2023"]
[White "Shapiro, Daniel"]
[Black "KrokerGuy"]
[WhiteFideId "2001780"]
[WhiteElo "2327"]
[BlackElo "2460"]
[Result "0-1"]
[Round "6"]
[TimeControl "180+1"]
[Date "2023.08.08"]
[WhiteClock "0:00:00"]
[BlackClock "0:00:02"]
[Board "115"]

1. d4 {[%clk 0:03:00]}  d5 {[%clk 0:03:00]} 2. c4 {[%clk 0:03:00]}  e6 {[%clk 0:03:00]} 3. Nf3 {[%clk 0:03:00]}  Nf6 {[%clk 0:03:01]} 4. g3 {[%clk 0:03:01]}  Bb4+ {[%clk 0:02:59]} 5. Bd2 {[%clk 0:03:00]}  Be7 {[%clk 0:02:59]} 6. Qc2 {[%clk 0:02:59]}  O-O {[%clk 0:02:55]} 7. Bg2 {[%clk 0:02:59]}  a6 {[%clk 0:02:46]} 8. cxd5 {[%clk 0:02:57]}  exd5 {[%clk 0:02:43]} 9. O-O {[%clk 0:02:56]}  Re8 {[%clk 0:02:42]} 10. a3 {[%clk 0:02:49]}  g6 {[%clk 0:02:41]} 11. Nc3 {[%clk 0:02:36]}  Bf8 {[%clk 0:02:38]} 12. Rfd1 {[%clk 0:02:35]}  Bg7 {[%clk 0:02:30]} 13. Rac1 {[%clk 0:02:28]}  c6 {[%clk 0:02:31]} 14. b4 {[%clk 0:02:21]}  Bf5 {[%clk 0:01:51]} 15. Qb3 {[%clk 0:02:17]}  Ne4 {[%clk 0:01:51]} 16. Be1 {[%clk 0:02:11]}  Nxc3 {[%clk 0:01:49]} 17. Rxc3 {[%clk 0:02:01]}  Rxe2 {[%clk 0:01:49]} 18. Bf1 {[%clk 0:02:01]}  Re8 {[%clk 0:01:47]} 19. a4 {[%clk 0:01:55]}  Nd7 {[%clk 0:01:06]} 20. b5 {[%clk 0:01:38]}  axb5 {[%clk 0:01:06]} 21. axb5 {[%clk 0:01:37]}  Qb6 {[%clk 0:00:49]} 22. bxc6 {[%clk 0:01:15]}  Qxb3 {[%clk 0:00:49]} 23. Rxb3 {[%clk 0:01:16]}  bxc6 {[%clk 0:00:50]} 24. Rc1 {[%clk 0:00:41]}  Rec8 {[%clk 0:00:28]} 25. h3 {[%clk 0:00:18]}  Be4 {[%clk 0:00:25]} 26. Bg2 {[%clk 0:00:16]}  Bxf3 {[%clk 0:00:22]} 27. Bxf3 {[%clk 0:00:16]}  Bxd4 {[%clk 0:00:22]} 28. Rb7 {[%clk 0:00:16]}  Nc5 {[%clk 0:00:13]} 29. Rb4 {[%clk 0:00:13]}  Ne6 {[%clk 0:00:12]} 30. Rbb1 {[%clk 0:00:10]}  Bg7 {[%clk 0:00:05]} 31. Bg2 {[%clk 0:00:08]}  Nd4 {[%clk 0:00:06]} 32. Rd1 {[%clk 0:00:08]}  Ne2+ {[%clk 0:00:05]} 33. Kf1 {[%clk 0:00:07]}  Nc3 {[%clk 0:00:05]} 34. Bxc3 {[%clk 0:00:06]}  Bxc3 {[%clk 0:00:06]} 35. Rdc1 {[%clk 0:00:06]}  d4 {[%clk 0:00:07]} 36. Be4 {[%clk 0:00:05]}  Ra2 {[%clk 0:00:03]} 37. Rb6 {[%clk 0:00:04]}  c5 {[%clk 0:00:02]} 38. Rb7 {[%clk 0:00:05]}  Ra6 {[%clk 0:00:01]} 39. Bd5 {[%clk 0:00:05]}  Rf6 {[%clk 0:00:02]} 40. Rc2 {[%clk 0:00:03]}  Rd8 {[%clk 0:00:02]} 41. Bc4 {[%clk 0:00:02]}  Kg7 {[%clk 0:00:02]} 42. Re2 {[%clk 0:00:00]}  d3 {[%clk 0:00:02]} 0-1


[Site "https://www.chess.com"]